Workbook

Sheet Лист1
A1: Школа | C1: МБОУ " Уруссинская СОШ №2" | F1: Утвердил: | G1: должность | H1: Директор
A2: Типовое примерное меню приготавливаемых блюд | G2: фамилия | H2: Якимова Н.В.
A3: Возрастная категория | E3: 7-11 лет | G3: дата | H3: 21 | I3: 9 | J3: 2024
H4: день | I4: месяц | J4: год
A5: Неделя | B5: День недели | C5: Прием пищи | D5: Раздел меню | E5: Блюда | F5: Вес блюда, г | G5: Белки | H5: Жиры | I5: Углеводы | J5: Калорийность | K5: № рецептуры | L5: Цена
A6: 1 | B6: 1 | C6: Завтрак | D6: гор.блюдо | E6: Котлеты школьные с соусом сметанным с томатом | F6: 100 | G6: 5.8 | H6: 9.8 | I6: 9.01 | J6: 130.2 | K6: 347
D7: гор.блюдо | E7: Пюре гороховое с маслом | F7: 150/5 | G7: 8.8 | H7: 5.64 | I7: 32.56 | J7: 259.9 | K7: 183
D8: гор.напиток | E8: Чай с сахаром | F8: 200 | G8: 0.2 | H8: 0 | I8: 9.1 | J8: 36 | K8: 300
D9: салат | E9: Салат из белокачанной капусты | F9: 60 | G9: 1.3 | H9: 2.7 | I9: 6,2 | J9: 57 | K9: 6
D10: хлеб бел | E10: Хлеб пшеничный | F10: 30 | G10: 2.28 | H10: 0.24 | I10: 14.76 | J10: 70.2 | K10: 573
D11: хлеб черн. | E11: Хлеб дарницкий | F11: 20 | G11: 1.36 | H11: 0.26 | I11: 7.96 | J11: 39.6 | K11: 574
D15: итого | F15: =SUM(F6:F14) -> 410 | G15: =SUM(G6:G14) -> 19.74 | H15: =SUM(H6:H14) -> 18.64 | I15: =SUM(I6:I14) -> 73.39 | J15: =SUM(J6:J14) -> 535.9 | L15: =SUM(L6:L14) -> 0
A16: =A6 -> 1 | B16: =B6 -> 1 | C16: Обед | D16: закуска
D17: 1 блюдо
D18: 2 блюдо
D19: гарнир
D20: напиток
D21: хлеб бел.
D22: хлеб черн.
D25: итого | F25: =SUM(F16:F24) -> 0 | G25: =SUM(G16:G24) -> 0 | H25: 0 | I25: 0 | J25: 0 | L25: =SUM(L16:L24) -> 0
A26: =A6 -> 1 | B26: =B6 -> 1 | C26: Итого за день: | F26: =F15+F25 -> 410 | G26: =G15+G25 -> 19.74 | H26: 18.64 | I26: 73.39 | J26: 535.9 | L26: =L15+L25 -> 0
A27: 1 | B27: 2 | C27: Завтрак | D27: гор.блюдо | E27: Биточки рыбные с соусом | F27: 100 | G27: 8.8 | H27: 12.55 | I27: 8.47 | J27: 134.6 | K27: 83
D28: гор.блюдо | E28: макаронные изделия отварные с маслом | F28: 150/5 | G28: 5.42 | H28: 3.67 | I28: 20.1 | J28: 194.2 | K28: 227
D29: напиток | E29: компот из сухофруктов | F29: 200 | G29: 0.5 | H29: 0.1 | I29: 30.9 | J29: 123.00 | K29: 310
D30: хлеб бел. | E30: Хлеб пшеничный | F30: 30 | G30: 2.28 | H30: 0.24 | I30: 14.76 | J30: 70.2 | K30: 573
D31: хлеб черн. | E31: хлеб дарницкий | F31: 20 | G31: 1.36 | H31: 0.26 | I31: 7.96 | J31: 39.6 | K31: 574
D35: итого | F35: =SUM(F27:F34) -> 350 | G35: =SUM(G27:G34) -> 18.36 | H35: =SUM(H27:H34) -> 16.82 | I35: =SUM(I27:I34) -> 82.19 | J35: =SUM(J27:J34) -> 561.6 | L35: =SUM(L27:L34) -> 0
A36: =A27 -> 1 | B36: =B27 -> 2 | C36: Обед | D36: закуска
D37: 1 блюдо
D38: 2 блюдо
D39: гарнир
D40: напиток
D41: хлеб бел.
D42: хлеб черн.
D45: итого | F45: =SUM(F36:F44) -> 0 | G45: =SUM(G36:G44) -> 0 | H45: =SUM(H36:H44) -> 0 | I45: =SUM(I36:I44) -> 0 | J45: =SUM(J36:J44) -> 0 | L45: 0
A46: =A27 -> 1 | B46: =B27 -> 2 | C46: Итого за день: | F46: =F35+F45 -> 350 | G46: =G35+G45 -> 18.36 | H46: =H35+H45 -> 16.82 | I46: =I35+I45 -> 82.19 | J46: =J35+J45 -> 561.6 | L46: 0
A47: 1 | B47: 3 | C47: Завтрак | D47: гор.блюдо | E47: жаркое по домашнему с куриными грудками | F47: 200 | G47: 11,8 | H47: 15.1 | I47: 25.8 | J47: 301.25 | K47: 98
D48: гор.напиток | E48: чай с молоком | F48: 200 | G48: 1,6 | H48: 1,5 | I48: 11,3 | J48: 62 | K48: 301
D49: хлеб бел. | E49: Хлеб пшеничный | F49: 30 | G49: 2,28 | H49: 0,24 | I49: 14,76 | J49: 70,2 | K49: 573
D50: хлеб черн. | E50: хлеб дарницкий | F50: 20 | G50: 1,36 | H50: 0,26 | I50: 7,96 | J50: 39,6 | K50: 574
D51: фрукты | E51: фрукты свежие | F51: 100 | G51: 0.4 | H51: 0.4 | I51: 9.8 | J51: 47 | K51: 338
D54: итого | F54: =SUM(F47:F53) -> 550 | G54: =SUM(G47:G53) -> 0.4 | H54: =SUM(H47:H53) -> 15.5 | I54: =SUM(I47:I53) -> 35.6 | J54: =SUM(J47:J53) -> 348.25 | L54: =SUM(L47:L53) -> 0
A55: =A47 -> 1 | B55: =B47 -> 3 | C55: Обед | D55: закуска
D56: 1 блюдо
D57: 2 блюдо
D58: гарнир
D59: напиток
D60: хлеб бел.
D61: хлеб черн.
D64: итого | F64: =SUM(F55:F63) -> 0 | G64: =SUM(G55:G63) -> 0 | H64: =SUM(H55:H63) -> 0 | I64: =SUM(I55:I63) -> 0 | J64: =SUM(J55:J63) -> 0 | L64: 0
A65: =A47 -> 1 | B65: =B47 -> 3 | C65: Итого за день: | F65: =F54+F64 -> 550 | G65: =G54+G64 -> 0.4 | H65: =H54+H64 -> 15.5 | I65: =I54+I64 -> 35.6 | J65: =J54+J64 -> 348.25 | L65: 0
A66: 1 | B66: 4 | C66: Завтрак | D66: гор.блюдо | E66: Фрикадельки куринные тушеные в соусе | F66: 90 | G66: 4.5 | H66: 8.8 | I66: 5.7 | J66: 77.7 | K66: 134
D67: гор.блюдо | E67: Каша пшенная рассыпчатая с маслом | F67: 155 | G67: 6,7 | H67: 4,11 | I67: 39,4 | J67: 218,67 | K67: 188
D68: гор.напиток | E68: чай с сахаром | F68: 200 | G68: 0,2 | H68: 0 | I68: 9,1 | J68: 36 | K68: 300
D69: закуска | E69: Салат из свеклы с растительным маслом | F69: 60 | G69: 1 | H69: 4,8 | I69: 5 | J69: 69 | K69: 25
D70: хлеб бел. | E70: Хлеб пшеничный | F70: 30 | G70: 2,28 | H70: 0,24 | I70: 14,76 | J70: 70,2 | K70: 573
D71: хлеб черн. | E71: хлеб дарницкий | F71: 20 | G71: 1,36 | H71: 0,26 | I71: 7,96 | J71: 39,6 | K71: 574
D72: фрукты
D75: итого | F75: =SUM(F66:F74) -> 265 | G75: =SUM(G66:G74) -> 4.5 | H75: =SUM(H66:H74) -> 8.8 | I75: =SUM(I66:I74) -> 5.7 | J75: =SUM(J66:J74) -> 77.7 | L75: 0
A76: =A66 -> 1 | B76: =B66 -> 4 | C76: Обед | D76: закуска
D77: 1 блюдо
D78: 2 блюдо
D79: гарнир
D80: напиток
D81: хлеб бел.
D82: хлеб черн.
D85: итого | F85: =SUM(F76:F84) -> 0 | G85: =SUM(G76:G84) -> 0 | H85: =SUM(H76:H84) -> 0 | I85: =SUM(I76:I84) -> 0 | J85: =SUM(J76:J84) -> 0 | L85: 0
A86: =A66 -> 1 | B86: =B66 -> 4 | C86: Итого за день: | F86: =F75+F85 -> 265 | G86: =G75+G85 -> 4.5 | H86: =H75+H85 -> 8.8 | I86: =I75+I85 -> 5.7 | J86: =J75+J85 -> 77.7 | L86: 0
D87: гор.блюдо | E87: гречка с курицей по-купески | F87: 200 | G87: 13,42 | H87: 13,67 | I87: 33,3 | J87: 294,2 | K87: 139
D88: гор.напиток | E88: Чай с сахаром | F88: 200 | G88: 0,2 | H88: 0 | I88: 9,1 | J88: 36 | K88: 300
D89: хлеб бел. | E89: Хлеб пшеничный | F89: 30 | G89: 2,28 | H89: 0,24 | I89: 14,76 | J89: 70,2 | K89: 573
D90: хлеб черн. | E90: хлеб дарницкий | F90: 20 | G90: 1,36 | H90: 0,26 | I90: 7,96 | J90: 39,6 | K90: 574
D91: салат | E91: салат из моркови | F91: 60 | G91: 0.6 | H91: 2.3 | I91: 5 | J91: 72 | K91: 17
D94: итого | F94: =SUM(F87:F93) -> 110 | G94: =SUM(G87:G93) -> 0.6 | H94: =SUM(H87:H93) -> 2.3 | I94: =SUM(I87:I93) -> 5 | J94: =SUM(J87:J93) -> 72 | L94: =SUM(L87:L93) -> 0
A95: =#REF! ->  | B95: =#REF! ->  | C95: Обед | D95: закуска
D96: 1 блюдо
D97: 2 блюдо
D98: гарнир
D99: напиток
D100: хлеб бел.
D101: хлеб черн.
D104: итого | F104: =SUM(F95:F103) -> 0 | G104: =SUM(G95:G103) -> 0 | H104: =SUM(H95:H103) -> 0 | I104: =SUM(I95:I103) -> 0 | J104: =SUM(J95:J103) -> 0 | L104: 0
A105: =#REF! ->  | B105: =#REF! ->  | C105: Итого за день: | F105: =F94+F104 -> 110 | G105: =G94+G104 -> 0.6 | H105: =H94+H104 -> 2.3 | I105: =I94+I104 -> 5 | J105: =J94+J104 -> 72 | L105: 0
A106: 2 | B106: 1 | C106: Завтрак | D106: гор.блюдо | E106: тефтели говяжьи с соусом | F106: 90 | G106: 8,6 | H106: 14,3 | I106: 10,3 | J106: 177,1 | K106: 110
D107: гор.блюдо | E107: макаронные изделия отварные с маслом | F107: 150/5 | G107: 5.42 | H107: 3.67 | I107: 20,1 | J107: 194.2 | K107: 227
D108: гор.напиток | E108: Чай с сахаром | F108: 200 | G108: 0,2 | H108: 0 | I108: 9,1 | J108: 36 | K108: 300
D109: хлеб бел. | E109: Хлеб пшеничный | F109: 30 | G109: 2,28 | H109: 0,24 | I109: 14,76 | J109: 70,2 | K109: 573
D110: хлеб черн. | E110: хлеб дарницкий | F110: 20 | G110: 1,36 | H110: 0,26 | I110: 7,96 | J110: 39,6 | K110: 574
D111: салат | E111: фрукты свежие | F111: 100 | G111: 0.4 | H111: 0.4 | I111: 9.8 | J111: 47 | K111: 338
D114: итого | F114: =SUM(F106:F113) -> 150 | G114: =SUM(G106:G113) -> 5.82 | H114: 4.07 | I114: 9.8 | J114: 241.2 | L114: =SUM(L106:L113) -> 0
A115: =A106 -> 2 | B115: =B106 -> 1 | C115: Обед | D115: закуска
D116: 1 блюдо
D117: 2 блюдо
D118: гарнир
D119: напиток
D120: хлеб бел.
D121: хлеб черн.
D124: итого | F124: =SUM(F115:F123) -> 0 | G124: =SUM(G115:G123) -> 0 | H124: 0 | I124: 0 | J124: 0 | L124: =SUM(L115:L123) -> 0
A125: =A106 -> 2 | B125: =B106 -> 1 | C125: Итого за день: | F125: =F114+F124 -> 150 | G125: =G114+G124 -> 5.82 | H125: =H114+H124 -> 4.07 | I125: =I114+I124 -> 9.8 | J125: =J114+J124 -> 241.2 | L125: 0
A126: 2 | B126: 2 | C126: Завтрак | D126: гор.блюдо | E126: котлеты школьные с соусом сметанным с томатом | F126: 100 | G126: 5.8 | H126: 9.8 | I126: 9.01 | J126: 130.2 | K126: 347
D127: гор.блюдо | E127: каша гречневая рассыпчатая с маслом | F127: 150/5 | G127: 8.83 | H127: 5.67 | I127: 32.58 | J127: 260 | K127: 183
D128: гор.напиток | E128: Чай с сахаром | F128: 200 | G128: 0.2 | H128: 0 | I128: 9.1 | J128: 36 | K128: 300
D129: хлеб бел. | E129: Хлеб пшеничный | F129: 30 | G129: 2.28 | H129: 0.24 | I129: 14.76 | J129: 70.20 | K129: 573
D130: хлеб черн. | E130: хлеб дарницкий | F130: 20 | G130: 1.36 | H130: 0.26 | I130: 7.96 | J130: 39.6 | K130: 574
D133: итого | F133: =SUM(F126:F132) -> 350 | G133: =SUM(G126:G132) -> 18.47 | H133: =SUM(H126:H132) -> 15.97 | I133: =SUM(I126:I132) -> 73.41 | J133: =SUM(J126:J132) -> 536 | L133: =SUM(L126:L132) -> 0
A134: =A126 -> 2 | B134: =B126 -> 2 | C134: Обед | D134: закуска
D135: 1 блюдо
D136: 2 блюдо
D137: гарнир
D138: напиток
D139: хлеб бел.
D140: хлеб черн.
D143: итого | F143: =SUM(F134:F142) -> 0 | G143: =SUM(G134:G142) -> 0 | H143: 0 | I143: 0 | J143: 0 | L143: =SUM(L134:L142) -> 0
A144: =A126 -> 2 | B144: =B126 -> 2 | C144: Итого за день: | F144: =F133+F143 -> 350 | G144: =G133+G143 -> 18.47 | H144: =H133+H143 -> 15.97 | I144: =I133+I143 -> 73.41 | J144: =J133+J143 -> 536 | L144: 0
A145: 2 | B145: 3 | C145: Завтрак | D145: гор.блюдо | E145: картофельное пюре | F145: 150 | G145: 3.08 | H145: 3,7 | I145: 32,03 | J145: 190,25 | K145: 146
D146: гор.блюдо | E146: биточки рыбные с соусом | F146: 100 | G146: 8,8 | H146: 12,55 | I146: 8,47 | J146: 134,6 | K146: 83
D147: гор.напиток | E147: Чай с лимоном с сахаром | F147: 200 | G147: 0,2 | H147: 0 | I147: 9,3 | J147: 38 | K147: 302
D148: хлеб бел. | E148: Хлеб пшеничный | F148: 30 | G148: 2,28 | H148: 0,24 | I148: 14,76 | J148: 70,2 | K148: 573
D149: хлеб черн. | E149: хлеб дарницкий | F149: 20 | G149: 1,36 | H149: 0,26 | I149: 7,96 | J149: 39,6 | K149: 574
D150: салат | E150: салат из моркови | F150: 60 | G150: 0.6 | H150: 2.3 | I150: 5 | J150: 72 | K150: 17
D153: итого | F153: =SUM(F145:F152) -> 560 | G153: =SUM(G145:G152) -> 3.68 | H153: =SUM(H145:H152) -> 2.3 | I153: =SUM(I145:I152) -> 5 | J153: =SUM(J145:J152) -> 72 | L153: =SUM(L145:L152) -> 0
A154: =A145 -> 2 | B154: =B145 -> 3 | C154: Обед | D154: закуска
D155: 1 блюдо
D156: 2 блюдо
D157: гарнир
D158: напиток
D159: хлеб бел.
D160: хлеб черн.
D163: итого | F163: =SUM(F154:F162) -> 0 | G163: =SUM(G154:G162) -> 0 | H163: 0 | I163: 0 | J163: 0 | L163: =SUM(L154:L162) -> 0
A164: =A145 -> 2 | B164: =B145 -> 3 | C164: Итого за день: | F164: =F153+F163 -> 560 | G164: =G153+G163 -> 3.68 | H164: =H153+H163 -> 2.3 | I164: =I153+I163 -> 5 | J164: =J153+J163 -> 72 | L164: 0
A165: 2 | B165: 4 | C165: Завтрак | D165: гор.блюдо | E165: Плов из птицы | F165: 200 | G165: 12.2 | H165: 13.2 | I165: 22.2 | J165: 267 | K165: 138
D166: гор.напиток | E166: Компот из сухофруктов | F166: 200 | G166: 0,5 | H166: 0,1 | I166: 30,9 | J166: 123 | K166: 310
D167: закуска | E167: Салат из свеклы с растительным маслом | F167: 60 | G167: 1 | H167: 4,8 | I167: 5 | J167: 69 | K167: 25
D168: хлеб бел. | E168: Хлеб пшеничный | F168: 30 | G168: 2,28 | H168: 0,24 | I168: 14,76 | J168: 70,2 | K168: 573
D169: хлеб черн. | E169: хлеб дарницкий | F169: 20 | G169: 1.36 | H169: 0.26 | I169: 7.96 | J169: 39.6 | K169: 574
D170: фрукты
D173: итого | F173: =SUM(F165:F172) -> 510 | G173: =SUM(G165:G172) -> 13.56 | H173: =SUM(H165:H172) -> 13.46 | I173: =SUM(I165:I172) -> 30.16 | J173: =SUM(J165:J172) -> 306.6 | L173: =SUM(L165:L172) -> 0
A174: =A165 -> 2 | B174: =B165 -> 4 | C174: Обед | D174: закуска
D175: 1 блюдо
D176: 2 блюдо
D177: гарнир
D178: напиток
D179: хлеб бел.
D180: хлеб черн.
D183: итого | F183: =SUM(F174:F182) -> 0 | G183: =SUM(G174:G182) -> 0 | H183: 0 | I183: 0 | J183: 0 | L183: =SUM(L174:L182) -> 0
A184: =A165 -> 2 | B184: =B165 -> 4 | C184: Итого за день: | F184: =F173+F183 -> 510 | G184: =G173+G183 -> 13.56 | H184: =H173+H183 -> 13.46 | I184: =I173+I183 -> 30.16 | J184: =J173+J183 -> 306.6 | L184: 0
A185: 2 | B185: 5 | C185: Завтрак | D185: гор.блюдо | E185: Фрикадельки куриные тушеные в соусе | F185: 90 | G185: 4,5 | H185: 8,8 | I185: 1,7 | J185: 77,7 | K185: 134
D186: гор.блюдо | E186: Каша гречневая рассыпчатая с маслом | F186: 150/5 | G186: 8.83 | H186: 5.67 | I186: 32.58 | J186: 260 | K186: 183
D187: гор.напиток | E187: Чай с сахаром | F187: 200 | G187: 0,2 | H187: 0 | I187: 9,1 | J187: 36 | K187: 300
D188: закуска | E188: фрукты свежие | F188: 100 | G188: 0,4 | H188: 0,4 | I188: 9,8 | J188: 47 | K188: 338
D189: хлеб бел. | E189: Хлеб пшеничный | F189: 30 | G189: 2,28 | H189: 0,24 | I189: 14,76 | J189: 70,2 | K189: 573
D190: хлеб черн. | E190: хлеб дарницкий | F190: 20 | G190: 1,36 | H190: 0,26 | I190: 7,96 | J190: 39,6 | K190: 574
D191: салат | E191: салат из белокачанной капусты | F191: 60 | G191: 1.3 | H191: 2.7 | I191: 6.2 | J191: 57 | K191: 6
D194: итого | F194: =SUM(F185:F193) -> 110 | G194: =SUM(G185:G193) -> 10.13 | H194: 8.37 | I194: 38.78 | J194: 317 | L194: =SUM(L185:L193) -> 0
A195: =A185 -> 2 | B195: =B185 -> 5 | C195: Обед | D195: закуска
D196: 1 блюдо
D197: 2 блюдо
D198: гарнир
D199: напиток
D200: хлеб бел.
D201: хлеб черн.
D204: итого | F204: =SUM(F195:F203) -> 0 | G204: =SUM(G195:G203) -> 0 | H204: 0 | I204: 0 | J204: 0 | L204: =SUM(L195:L203) -> 0
A205: =A185 -> 2 | B205: =B185 -> 5 | C205: Итого за день: | F205: =F194+F204 -> 110 | G205: =G194+G204 -> 10.13 | H205: =H194+H204 -> 8.37 | I205: =I194+I204 -> 38.78 | J205: =J194+J204 -> 317 | L205: 0
C206: Среднее значение за период: | F206: =(F26+F46+F65+F86+F105+F125+F144+F164+F184+F205)/(IF(F26=0,0,1)+IF(F46=0,0,1)+IF(F65=0,0,1)+IF(F86=0,0,1)+IF(F105=0,0,1)+IF(F125=0,0,1)+IF(F144=0,0,1)+IF(F164=0,0,1)+IF(F184=0,0,1)+IF(F205=0,0,1)) -> 336.5 | G206: =(G26+G46+G65+G86+G105+G125+G144+G164+G184+G205)/(IF(G26=0,0,1)+IF(G46=0,0,1)+IF(G65=0,0,1)+IF(G86=0,0,1)+IF(G105=0,0,1)+IF(G125=0,0,1)+IF(G144=0,0,1)+IF(G164=0,0,1)+IF(G184=0,0,1)+IF(G205=0,0,1)) -> 9.526 | H206: =(H26+H46+H65+H86+H105+H125+H144+H164+H184+H205)/(IF(H26=0,0,1)+IF(H46=0,0,1)+IF(H65=0,0,1)+IF(H86=0,0,1)+IF(H105=0,0,1)+IF(H125=0,0,1)+IF(H144=0,0,1)+IF(H164=0,0,1)+IF(H184=0,0,1)+IF(H205=0,0,1)) -> 10.623 | I206: =(I26+I46+I65+I86+I105+I125+I144+I164+I184+I205)/(IF(I26=0,0,1)+IF(I46=0,0,1)+IF(I65=0,0,1)+IF(I86=0,0,1)+IF(I105=0,0,1)+IF(I125=0,0,1)+IF(I144=0,0,1)+IF(I164=0,0,1)+IF(I184=0,0,1)+IF(I205=0,0,1)) -> 35.903 | J206: =(J26+J46+J65+J86+J105+J125+J144+J164+J184+J205)/(IF(J26=0,0,1)+IF(J46=0,0,1)+IF(J65=0,0,1)+IF(J86=0,0,1)+IF(J105=0,0,1)+IF(J125=0,0,1)+IF(J144=0,0,1)+IF(J164=0,0,1)+IF(J184=0,0,1)+IF(J205=0,0,1)) -> 306.825 | L206: =(L26+L46+L65+L86+L105+L125+L144+L164+L184+L205)/(IF(L26=0,0,1)+IF(L46=0,0,1)+IF(L65=0,0,1)+IF(L86=0,0,1)+IF(L105=0,0,1)+IF(L125=0,0,1)+IF(L144=0,0,1)+IF(L164=0,0,1)+IF(L184=0,0,1)+IF(L205=0,0,1)) -> 
